bitfinex-derivatives/quotes_SOLF0:USTF0_20250109
["timestamp","ask_amount","ask_price","bid_price","bid_amount"]
[1736442212284,13.06898175,191.78,191.69,9.67451438]
[1736442212991,2.6079,191.77,191.71,2.6086]
[1736442213192,2.6079,191.77,191.69,9.67451438]
[1736442213492,2.6082,191.75,191.72,2.6085]
[1736442213692,2.6082,191.75,191.69,9.67451438]
[1736442214094,2.6083,191.74,191.69,9.67451438]
[1736442214491,13.06898175,191.78,191.69,9.67451438]
[1736442214692,13.06898175,191.78,191.7,2.6087]
[1736442215394,2.6084,191.74,191.7,2.6087]
[1736442217397,13.06898175,191.78,191.69,9.67451438]
[1736442218094,13.06898175,191.78,191.74,2.6083]
[1736442218095,2.6079,191.77,191.74,2.6083]
[1736442220193,13.06898175,191.81,191.69,9.67451438]
[1736442220394,13.06898175,191.81,191.76,2.608]
[1736442220699,13.06898175,191.81,191.7,13.06898175]
[1736442220997,15.67638175,191.81,191.7,13.06898175]
[1736442221198,2.6074,191.81,191.7,13.06898175]
[1736442221392,2.6074,191.81,191.74,2.6083]
[1736442221593,2.6074,191.81,191.71,1.4958]
[1736442222491,2.6074,191.81,191.73,13.06898175]
[1736442222794,2.6074,191.81,191.74,1.5651]
[1736442222994,2.6074,191.81,191.77,2.6078]
[1736442223196,2.6074,191.81,191.74,1.5651]
[1736442223695,16.14758175,191.84,191.78,2.6076]
[1736442223893,13.06898175,191.81,191.7,14.69838175]
[1736442224499,2.6077,191.79,191.75,2.608]
[1736442224798,2.6077,191.79,191.7,14.69838175]
[1736442224993,13.06898175,191.81,191.7,14.69838175]
[1736442225194,2.6075,191.8,191.77,2.6079]
[1736442226195,13.06898175,191.81,191.77,2.6079]
[1736442226397,2.6076,191.79,191.77,2.6079]
[1736442227196,2.6076,191.79,191.7,14.69838175]
[1736442227397,2.6076,191.79,191.76,2.608]
[1736442228600,2.6076,191.79,191.7,14.69838175]
[1736442229399,13.06898175,191.81,191.7,1.6294]
[1736442230000,2.608,191.77,191.74,2.6083]
[1736442230200,13.06898175,191.81,191.74,2.6083]
[1736442230696,13.06898175,191.78,191.69,9.67451438]
[1736442231002,13.06898175,191.75,191.69,9.67451438]
[1736442231196,13.06898175,191.72,191.65,7.178099]
[1736442231404,2.6091,191.69,191.65,2.6095]
[1736442231901,2.6092,191.68,191.64,87.9267178]
[1736442232094,2.6092,191.68,191.64,59.21432179]
[1736442232800,2.6092,191.68,191.65,2.6095]
[1736442238103,2.6093,191.67,191.63,4.1193]
[1736442239006,2.6093,191.67,191.59,13.06898175]
[1736442239007,2.6095,191.66,191.62,2.6099]
[1736442239200,13.06898175,191.69,191.59,13.06898175]
[1736442239704,2.6093,191.67,191.59,13.06898175]
[1736442239898,13.06898175,191.69,191.59,13.06898175]
[1736442240399,2.6095,191.66,191.62,2.6098]
[1736442241408,2.6092,191.68,191.64,2.6096]
[1736442242202,13.06898175,191.69,191.64,2.6096]
[1736442242408,2.6093,191.67,191.64,2.6096]
[1736442242805,2.6087,191.71,191.62,13.06898175]
[1736442243507,2.6087,191.71,191.67,2.6092]
[1736442244017,2.6089,191.7,191.67,2.6092]
[1736442244911,2.6089,191.7,191.62,13.06898175]
[1736442244912,3.128,191.76,191.62,13.06898175]
[1736442245116,1.5695,191.76,191.68,13.06898175]
[1736442245310,147.70391159,191.87,191.68,13.06898175]
[1736442245311,13.06898175,191.8,191.68,13.06898175]
[1736442245519,12.86978005,191.82,191.71,13.06898175]
[1736442245807,6.2339,191.82,191.71,13.06898175]
[1736442246015,2.6075,191.8,191.71,13.06898175]
[1736442246913,2.6075,191.8,191.74,2.6082]
[1736442247816,2.6076,191.79,191.74,2.6082]
[1736442248116,13.06898175,191.8,191.72,2.6085]
[1736442248312,13.06898175,191.8,191.7,1.6137]
[1736442248512,2.6081,191.76,191.71,2.6086]
[1736442248913,13.06898175,191.8,191.69,1.5396]
[1736442249106,13.06898175,191.8,191.63,59.21806771]
[1736442249311,13.06898175,191.8,191.67,13.06898175]
[1736442249611,2.608,191.77,191.73,2.6084]
[1736442252513,2.608,191.77,191.74,2.6083]
[1736442254612,13.06898175,191.8,191.67,13.06898175]
[1736442254817,2.6074,191.81,191.77,2.6078]
[1736442255007,6.2339,191.82,191.77,2.6078]
[1736442256120,2.6075,191.8,191.77,2.6078]
[1736442257707,2.6076,191.79,191.73,2.6084]
[1736442257914,2.6076,191.79,191.7,13.06898175]
[1736442258418,13.06898175,191.8,191.67,13.06898175]
[1736442258826,13.06898175,191.77,191.71,2.6086]
[1736442259117,2.6083,191.74,191.71,2.6086]
[1736442260020,13.06898175,191.77,191.66,9.67549709]
[1736442261620,2.6082,191.75,191.72,2.6085]
[1736442262119,2.6082,191.75,191.66,9.67549709]
[1736442262415,13.06898175,191.8,191.66,9.67549709]
[1736442262416,2.608,191.77,191.73,2.6084]
[1736442262615,2.608,191.77,191.67,13.06898175]
[1736442262821,2.608,191.77,191.73,2.6083]
[1736442264417,2.608,191.77,191.74,2.6082]
[1736442264616,2.6078,191.78,191.67,13.06898175]
[1736442264813,1.5139,191.82,191.73,13.06898175]
[1736442265020,14.59228175,191.83,191.79,2.6076]
[1736442265421,14.59228175,191.83,191.73,13.06898175]
[1736442266522,14.59228175,191.83,191.74,1.5178]
[1736442266723,2.6074,191.81,191.76,2.6079]
[1736442266924,2.6074,191.81,191.74,1.5178]
[1736442267424,2.6074,191.81,191.76,2.608]
[1736442267724,2.6074,191.81,191.74,1.5178]
[1736442268123,2.6074,191.81,191.77,2.6078]
[1736442269020,2.6074,191.81,191.78,2.6077]
[1736442270526,17.72898175,191.86,191.74,1.5178]
[1736442270825,13.06898175,191.86,191.76,13.06898175]
[1736442271026,2.607,191.84,191.76,13.06898175]
[1736442271925,2.607,191.84,191.8,2.6074]
[1736442272125,13.06898175,191.86,191.76,13.06898175]
[1736442272323,13.06898175,191.86,191.78,2.6077]
[1736442273225,2.6073,191.82,191.79,2.6076]
[1736442274124,13.06898175,191.83,191.74,1.5178]
[1736442274420,6.1779,191.87,191.74,1.5178]
[1736442274421,13.06898175,191.8,191.74,1.5178]
[1736442274627,2.608,191.77,191.73,2.6084]
[1736442275026,13.06898175,191.8,191.7,13.06898175]
[1736442275723,2.6079,191.77,191.74,2.6082]
[1736442276227,13.06898175,191.8,191.7,13.06898175]
[1736442276422,13.06898175,191.8,191.75,2.6082]
[1736442276423,2.6078,191.78,191.75,2.6082]
[1736442278219,2.6076,191.79,191.76,2.608]
[1736442278626,2.6073,191.82,191.73,2.6083]
[1736442278835,2.6073,191.82,191.73,13.06898175]
[1736442281230,13.06898175,191.83,191.73,13.06898175]
[1736442281426,4.64,191.85,191.76,2.6079]
[1736442281729,4.64,191.85,191.73,13.06898175]
[1736442282134,2.6072,191.82,191.79,2.6075]
[1736442282427,4.64,191.85,191.73,13.06898175]
[1736442283233,2.6071,191.83,191.8,2.6074]
[1736442284434,2.6072,191.82,191.8,2.6074]
[1736442285933,2.6072,191.82,191.73,13.06898175]
[1736442286136,2.6075,191.8,191.7,41.78137776]
[1736442286428,2.6075,191.8,191.7,20.24708075]
[1736442287337,2.6075,191.8,191.7,13.06898175]
[1736442287535,2.6075,191.8,191.77,2.6078]
[1736442287832,2.6075,191.8,191.7,13.06898175]
[1736442288236,13.06898175,191.83,191.7,13.06898175]
[1736442288436,2.6074,191.81,191.78,2.6078]
[1736442290737,2.6072,191.82,191.79,2.6076]
[1736442291136,13.06898175,191.83,191.73,13.06898175]
[1736442291339,8.35716693,191.82,191.75,8.35716693]
[1736442291740,8.35716693,191.8,191.69,10.366299]
[1736442291931,8.35716693,191.78,191.71,8.35716693]
[1736442292131,1.4965,191.84,191.69,10.366299]
[1736442292132,8.35716693,191.76,191.69,18.72346593]
[1736442292440,8.35716693,191.74,191.69,8.751999]
[1736442292636,8.35716693,191.72,191.69,7.178099]
[1736442293138,8.35716693,191.72,191.7,2.6088]
[1736442293735,1.5988,191.76,191.66,18.03266402]
[1736442293943,8.35716693,191.74,191.71,2.6086]
[1736442295144,1.5988,191.76,191.68,8.35716693]
[1736442295344,4.2069,191.76,191.66,22.74157281]
[1736442295842,4.2069,191.76,191.73,2.6084]
[1736442296139,4.62,191.77,191.66,22.74157281]
[1736442296140,2.6079,191.77,191.66,22.74157281]
[1736442296345,17.68607572,191.79,191.66,22.74157281]
[1736442296738,2.6081,191.76,191.72,2.6084]
[1736442298244,2.6079,191.77,191.69,2.6089]
[1736442298544,17.68607572,191.79,191.66,22.74157281]
[1736442299244,2.6081,191.76,191.66,22.74157281]
[1736442299648,2.6081,191.76,191.72,2.6085]
[1736442300347,2.6082,191.75,191.72,2.6085]
[1736442300538,17.68607572,191.79,191.66,22.74157281]
[1736442300744,17.68607572,191.79,191.73,2.6084]
[1736442301345,2.6081,191.76,191.73,2.6084]
[1736442301746,17.68607572,191.79,191.66,22.74157281]
[1736442302145,2.6081,191.76,191.72,2.6085]
[1736442302443,17.68607572,191.79,191.66,22.74157281]
[1736442302643,2.6087,191.72,191.66,22.74157281]
[1736442302839,13.06607572,191.76,191.66,22.74157281]
[1736442303044,13.06607572,191.76,191.66,9.67549709]
[1736442303241,13.06607572,191.73,191.65,2.6094]
[1736442303446,4.62,191.72,191.62,69.55569868]
[1736442303943,2.6091,191.68,191.65,2.6095]
[1736442304750,2.609,191.7,191.65,2.6095]
[1736442305446,4.62,191.72,191.58,1.4778]
[1736442305447,2.6083,191.74,191.64,13.06607572]
[1736442305648,2.6083,191.74,191.65,1.5928]
[1736442305847,13.06607572,191.76,191.65,1.5928]
[1736442307752,12.8080685,191.77,191.65,14.65887572]
[1736442307952,6.1662,191.77,191.65,14.65887572]
[1736442308253,13.06607572,191.74,191.65,1.5928]
[1736442308642,2.6089,191.7,191.66,2.6093]
[1736442308858,2.6089,191.7,191.65,1.5928]
[1736442309048,13.06607572,191.74,191.65,1.5928]
[1736442309243,2.6087,191.71,191.65,1.5928]
[1736442309649,13.06607572,191.74,191.65,1.5928]
[1736442310154,13.06607572,191.74,191.67,2.6092]
[1736442310852,2.6088,191.71,191.68,2.6091]
[1736442311249,2.6088,191.71,191.65,1.5928]
[1736442311653,2.6088,191.71,191.67,2.6092]
[1736442311855,2.6088,191.71,191.65,1.5928]
[1736442312244,13.06607572,191.74,191.65,1.5928]
[1736442312445,13.06607572,191.74,191.67,2.6092]
[1736442313057,2.6088,191.71,191.67,2.6092]
[1736442313957,2.6088,191.71,191.68,2.6091]
[1736442315052,13.06607572,191.74,191.65,1.5928]
[1736442315053,2.6086,191.72,191.69,2.609]
[1736442315552,13.06607572,191.74,191.65,1.5928]
[1736442315757,2.6087,191.71,191.68,2.6091]
[1736442316258,13.06607572,191.74,191.65,1.5928]
[1736442316457,14.61227572,191.77,191.65,1.5928]
[1736442316653,14.61227572,191.77,191.66,13.06607572]
[1736442317059,2.6081,191.76,191.73,2.6083]
[1736442317460,10.97015449,191.76,191.73,2.6083]
[1736442317861,8.36205449,191.76,191.73,2.6083]
[1736442318057,2.6082,191.75,191.73,2.6083]
[1736442318456,8.36205449,191.76,191.71,2.6086]
[1736442318652,8.36205449,191.76,191.7,8.36205449]
[1736442319554,10.97005449,191.76,191.73,2.6083]
[1736442319862,8.36205449,191.76,191.7,8.36205449]
[1736442320063,2.6082,191.75,191.72,2.6085]
[1736442320363,2.6082,191.75,191.7,8.36205449]
[1736442320558,10.97015449,191.76,191.73,2.6084]
[1736442321157,8.36205449,191.76,191.7,8.36205449]
[1736442321357,8.36205449,191.76,191.74,2.6082]
[1736442322456,10.97015449,191.76,191.7,8.36205449]
[1736442322861,2.6082,191.75,191.65,1.5928]
[1736442323055,8.36205449,191.74,191.69,8.36205449]
[1736442324068,10.97045449,191.74,191.71,2.6086]
[1736442325068,10.97045449,191.74,191.72,2.6086]
[1736442325668,2.6085,191.73,191.67,2.6092]
[1736442325860,2.6085,191.73,191.67,8.36205449]
[1736442326066,8.36205449,191.74,191.69,8.36205449]
[1736442327069,8.36205449,191.74,191.71,2.6086]
[1736442327070,10.97035449,191.74,191.71,2.6086]
[1736442327870,2.6082,191.75,191.72,2.6085]
[1736442328060,9.74222133,191.83,191.71,8.36205449]
[1736442328267,8.36205449,191.8,191.75,8.36205449]
[1736442328566,183.37834053,191.9,191.65,1.5928]
[1736442328567,6.63772133,191.87,191.79,8.36205449]
[1736442328771,6.63772133,191.87,191.81,8.36205449]
[1736442328772,14.99977582,191.87,191.81,8.36205449]
[1736442328971,14.99977582,191.87,191.84,2.6069]
[1736442329167,14.99977582,191.87,191.81,8.36205449]
[1736442329566,8.36205449,191.87,191.81,8.36205449]
[1736442329761,8.36205449,191.87,191.84,2.6069]
[1736442329971,8.36205449,191.89,191.83,8.36205449]
[1736442331363,2.6063,191.89,191.8,13.0473494]
[1736442331567,2.6063,191.89,191.81,1.5347]
[1736442332267,2.6064,191.88,191.81,1.5347]
[1736442332770,1.4958,191.91,191.81,1.5347]
[1736442332974,1.4958,191.91,191.81,3.1463]
[1736442333274,13.0473494,191.95,191.83,13.0473494]
[1736442333668,1.557,191.97,191.86,13.0473494]
[1736442333969,2.6053,191.96,191.86,13.0473494]
[1736442334363,1.557,191.97,191.9,2.606]
[1736442334560,2.6056,191.94,191.86,13.0473494]
[1736442334971,2.6056,191.94,191.89,2.6061]
[1736442337972,13.0473494,191.95,191.84,9.66657375]
[1736442338664,13.0473494,191.95,191.83,13.0473494]
[1736442339470,13.0473494,191.95,191.85,2.6067]
[1736442339865,13.0473494,191.92,191.82,11.28078438]
[1736442340173,13.0473494,191.92,191.83,2.6069]
[1736442341065,2.6064,191.88,191.84,2.6069]
[1736442341269,13.0473494,191.92,191.82,11.28078438]
[1736442341673,2.6064,191.89,191.85,2.6068]
[1736442341876,13.0473494,191.92,191.82,11.28078438]
[1736442342269,2.6066,191.87,191.82,4.2202]
[1736442342469,2.6066,191.87,191.82,1.6131]
[1736442342970,13.0473494,191.89,191.76,13.0473494]
[1736442343278,13.0473494,191.86,191.76,13.0473494]
[1736442343578,2.6069,191.85,191.8,2.6074]
[1736442344069,2.6069,191.85,191.76,22.71810558]
[1736442344070,2.6068,191.86,191.76,22.71810558]
[1736442344274,13.0473494,191.89,191.79,13.0473494]
[1736442344979,13.0473494,191.89,191.8,1.6218]
[1736442345167,2.6068,191.86,191.8,1.6218]
[1736442345375,13.0473494,191.89,191.8,1.6218]
[1736442345673,13.0473494,191.89,191.76,22.71810558]
[1736442345874,1.6301,191.88,191.76,22.71810558]
[1736442346074,13.0473494,191.86,191.76,22.71810558]
[1736442347178,2.6072,191.83,191.76,22.71810558]
[1736442348879,2.6069,191.85,191.76,22.71810558]
[1736442349679,2.6069,191.85,191.81,2.6072]
[1736442349981,2.6069,191.85,191.76,22.71810558]
[1736442350379,2.6069,191.85,191.82,2.6072]
[1736442350576,13.0473494,191.89,191.82,2.6072]
[1736442350775,13.0473494,191.89,191.79,13.0473494]
[1736442351474,4.6,191.91,191.79,13.0473494]
[1736442351674,1.4821,191.94,191.82,13.0473494]
[1736442351873,2.606,191.92,191.85,13.0473494]
[1736442352169,1.4821,191.94,191.85,13.0473494]
[1736442352480,2.6058,191.93,191.89,2.6062]
[1736442353370,2.6056,191.94,191.9,2.6061]
[1736442353571,2.6056,191.94,191.85,13.0473494]
[1736442354276,4.6,191.96,191.85,13.0473494]
[1736442354672,3.0724,192.02,191.85,13.0473494]
[1736442354880,13.0473494,191.95,191.87,2.6065]
[1736442355283,2.6059,191.92,191.85,13.0473494]
[1736442355581,19.1539494,191.98,191.85,13.0473494]
[1736442357282,2.6057,191.93,191.89,2.6062]
[1736442357480,2.6057,191.93,191.85,13.0473494]
[1736442357677,19.1539494,191.98,191.85,13.0473494]
[1736442357877,2.6056,191.94,191.91,2.6059]
[1736442358282,2.6056,191.94,191.85,13.0473494]
[1736442358474,19.1539494,191.98,191.85,13.0473494]
[1736442359085,2.6055,191.95,191.85,13.0473494]
[1736442359381,13.0473494,191.98,191.88,13.0473494]
[1736442359684,2.6051,191.98,191.94,2.6056]
[1736442359878,19.68731085,192.01,191.94,2.6056]
[1736442360074,0.79775393,192.0,191.94,2.6056]
[1736442360475,2.6053,191.96,191.93,2.6057]
[1736442361387,2.6053,191.96,191.92,2.6058]
[1736442361584,2.6052,191.97,191.89,1.556]
[1736442361784,13.0473494,192.01,191.91,13.0473494]
[1736442362088,8.16006145,192.02,191.96,2.6052]
[1736442362289,2.6049,191.99,191.96,2.6052]
[1736442362789,13.0473494,192.01,191.92,1.4922]
[1736442362986,13.0473494,192.01,191.91,9.66340978]
[1736442363284,13.0473494,191.98,191.91,9.66340978]
[1736442363489,2.6059,191.92,191.91,9.66340978]
[1736442363988,2.6062,191.9,191.87,1.4922]
[1736442364190,2.6062,191.9,191.87,4.0987]
[1736442364487,2.606,191.91,191.87,4.0987]
[1736442365080,2.6063,191.89,191.85,2.6068]
[1736442366080,2.6063,191.89,191.86,2.6066]
[1736442366281,13.0473494,191.95,191.84,1.5208]
[1736442366480,2.6061,191.91,191.84,1.5208]
[1736442366679,2.6061,191.91,191.88,2.6064]
[1736442367285,2.6058,191.93,191.89,2.6062]
[1736442367489,1.5467,191.97,191.84,1.5208]
[1736442367893,2.6059,191.92,191.88,2.6063]
[1736442368289,1.5467,191.97,191.84,1.5208]
[1736442368589,2.6057,191.94,191.84,1.5208]
[1736442369192,1.5467,191.97,191.84,1.5208]
[1736442369387,2.6058,191.93,191.89,2.6061]
[1736442371889,1.5467,191.97,191.84,1.5208]
[1736442372089,13.0473494,191.94,191.84,1.5208]
[1736442373095,2.606,191.91,191.87,2.6065]
[1736442373996,2.606,191.91,191.88,2.6063]
[1736442374397,2.606,191.91,191.84,1.5208]
[1736442374691,1.5467,191.97,191.84,1.5208]
[1736442374896,2.6061,191.9,191.86,2.6065]
[1736442375096,2.6061,191.9,191.84,1.5208]
[1736442375396,2.6061,191.9,191.86,2.6065]
[1736442375897,2.606,191.91,191.88,2.6063]
[1736442376795,2.6059,191.92,191.88,2.6063]
[1736442376997,1.5467,191.97,191.9,2.606]
[1736442377395,2.6057,191.94,191.9,2.606]
[1736442377593,2.6057,191.94,191.91,2.6059]
[1736442378286,2.6057,191.94,191.91,10.95095803]
[1736442378489,1.4962,192.02,191.93,8.34505803]
[1736442378490,2.6055,191.95,191.93,8.34505803]
[1736442378894,2.6054,191.96,191.93,10.95065803]
[1736442379398,2.6054,191.96,191.94,2.6056]
[1736442380198,2.6054,191.96,191.86,4.58]
[1736442380199,6.6834797,192.01,191.93,13.03479257]
[1736442381100,6.6834797,192.05,191.96,13.03479257]
[1736442381300,9.2876797,192.05,192.01,2.6046]
[1736442381500,6.6834797,192.05,191.96,13.03479257]
[1736442381691,8.1654797,192.07,191.96,13.03479257]
[1736442382303,2.6044,192.03,191.99,2.6048]
[1736442382602,1.482,192.07,191.96,13.03479257]
[1736442383006,8.1654797,192.07,191.96,13.03479257]
[1736442383197,2.6042,192.05,192.0,2.6047]
[1736442384401,8.1654797,192.07,192.01,2.6045]
[1736442384595,1.482,192.07,192.01,2.6045]
[1736442384801,1.482,192.07,191.96,13.03479257]
[1736442385002,13.03479257,192.11,191.99,13.03479257]
[1736442385198,13.03479257,192.11,192.0,1.5701]
[1736442385904,13.03479257,192.11,192.04,2.6041]
[1736442385905,2.6037,192.08,192.04,2.6041]
[1736442386907,2.6038,192.07,192.04,2.6041]
[1736442387701,2.6037,192.09,192.05,2.6041]
[1736442388003,7.6059,192.13,192.02,13.03479257]
[1736442388211,14.26006367,192.13,192.02,13.03479257]
[1736442388402,14.26006367,192.13,192.06,2.6038]
[1736442388403,2.6035,192.1,192.06,2.6038]
[1736442388609,9.68006367,192.13,192.06,2.6038]
[1736442388808,3.0259,192.13,192.06,2.6038]
[1736442389108,2.6038,192.08,192.04,2.6042]
[1736442389304,3.0259,192.13,192.04,2.6042]
[1736442390206,7.6059,192.13,192.04,2.6042]
[1736442390407,6.65416367,192.13,192.02,13.03479257]
[1736442390706,2.6035,192.1,192.06,2.6039]
[1736442390902,6.65416367,192.13,192.05,13.03479257]
[1736442391109,4.58,192.15,192.05,13.03479257]
[1736442391998,13.03479257,192.17,192.05,13.03479257]
[1736442392207,19.68895624,192.17,192.05,13.03479257]
[1736442393008,0.79690443,192.16,192.05,13.03479257]
[1736442393208,2.6034,192.11,192.06,2.6039]
[1736442393408,2.6034,192.11,192.02,13.03479257]
[1736442393612,13.03479257,192.14,192.02,13.03479257]
[1736442394514,13.03479257,192.11,192.0,1.5701]
[1736442395610,13.03479257,192.11,192.01,2.6045]
[1736442395813,3.2129,192.1,192.01,2.6045]
[1736442396410,2.6038,192.08,192.01,2.6045]
[1736442396615,3.2129,192.1,192.01,2.6045]
[1736442397118,3.2129,192.1,192.02,2.6044]
[1736442397618,3.2129,192.1,192.0,1.5701]
[1736442398220,2.6039,192.07,192.03,2.6044]
[1736442399215,2.604,192.06,192.03,2.6044]
[1736442399918,2.6041,192.05,192.02,2.6045]
[1736442402220,3.2129,192.1,192.0,1.5701]
[1736442402425,2.6043,192.04,192.01,2.6046]
[1736442404623,2.6045,192.02,191.99,12.2640758]
[1736442404825,13.03479257,192.05,191.99,9.6591758]
[1736442405028,13.03479257,192.05,191.93,4.7403]
[1736442405029,13.03479257,192.05,191.93,1.5981]
[1736442405228,13.03479257,192.02,191.94,2.6056]
[1736442405725,2.6052,191.97,191.92,13.03479257]
[1736442406025,3.2215,192.01,191.92,13.03479257]
[1736442406224,2.6051,191.98,191.95,2.6054]
[1736442406823,3.2215,192.01,191.92,13.03479257]
[1736442407028,3.2215,192.01,191.94,2.6055]
[1736442407522,3.2215,192.01,191.9,2.6061]
[1736442407724,13.03479257,191.97,191.88,1.4726]
[1736442408327,13.03479257,191.97,191.9,2.6061]
[1736442408533,13.03479257,191.97,191.88,1.4726]
[1736442408826,2.6056,191.94,191.9,2.6061]
[1736442409020,13.03479257,191.97,191.88,1.4726]
[1736442409729,2.6058,191.93,191.89,2.6062]
[1736442410027,13.03479257,191.97,191.88,1.4726]
[1736442410625,13.03479257,191.97,191.83,1.5993]
[1736442410826,13.03479257,191.97,191.84,13.03479257]
[1736442411029,2.6062,191.9,191.86,2.6067]
[1736442412225,13.03479257,191.97,191.84,13.03479257]
[1736442413331,2.6057,191.94,191.88,2.6063]
[1736442413629,13.03479257,191.97,191.84,13.03479257]
[1736442414531,2.606,191.92,191.88,2.6064]
[1736442415233,13.03479257,191.97,191.88,2.6064]
[1736442415433,2.606,191.91,191.88,2.6064]
[1736442415727,13.03479257,191.97,191.89,2.6062]
[1736442415933,2.6059,191.92,191.89,2.6062]
[1736442417535,2.6057,191.93,191.89,2.6062]
[1736442419035,2.6056,191.94,191.9,2.6061]
[1736442419837,2.6057,191.93,191.9,2.6061]
[1736442420129,8.34666796,191.95,191.89,2.6062]
[1736442420332,2.606,191.91,191.87,8.34666796]
[1736442420637,8.34666796,191.93,191.87,8.34666796]
[1736442421435,8.34666796,191.93,191.87,10.95316796]
[1736442422128,2.6061,191.9,191.87,10.95316796]
[1736442423340,2.6059,191.92,191.89,2.6062]
[1736442423531,1.6226,192.0,191.91,8.34666796]
[1736442423731,8.34666796,191.98,191.91,8.34666796]
[1736442424041,3.2215,192.01,191.95,8.34666796]
[1736442424339,8.34666796,192.02,191.97,8.34666796]
[1736442424639,8.34666796,192.04,191.99,2.6049]
[1736442424838,8.34666796,192.04,191.97,8.34666796]
[1736442425336,2.6046,192.02,191.98,2.605]
[1736442425528,17.60875023,192.06,191.94,13.02875023]
[1736442427136,2.6047,192.01,191.97,2.6051]
[1736442427434,2.6047,192.01,191.94,13.02875023]
[1736442427435,17.60875023,192.06,191.94,13.02875023]
[1736442428139,2.6048,192.0,191.96,2.6053]
[1736442428342,2.6048,192.0,191.94,13.02875023]
[1736442428544,17.60875023,192.06,191.94,13.02875023]
[1736442428742,2.6045,192.02,191.94,13.02875023]
[1736442429242,2.6045,192.02,191.98,2.605]
[1736442429443,2.6046,192.01,191.94,13.02875023]
[1736442429742,2.6046,192.01,191.97,2.6051]
[1736442430647,2.6046,192.01,191.98,2.605]
[1736442430947,2.6045,192.03,191.94,13.02875023]
[1736442431344,1.5957,192.08,191.97,13.02875023]
[1736442431848,1.5957,192.08,192.0,2.6047]
[1736442432846,1.5957,192.08,192.01,2.6046]
[1736442433043,1.5957,192.08,191.97,13.02875023]
[1736442433250,13.02875023,192.09,191.97,13.02875023]
[1736442433547,1.4871,192.1,192.0,13.02875023]
[1736442433748,1.4871,192.1,192.01,1.495]
[1736442434149,2.6038,192.08,192.04,2.6042]
[1736442434549,1.4871,192.1,192.04,2.6042]
[1736442434752,2.6039,192.07,192.04,2.6042]
[1736442435352,1.4871,192.1,192.01,1.495]
[1736442435552,2.604,192.06,192.03,2.6043]
[1736442436655,2.6041,192.05,192.02,2.6045]
[1736442438653,2.6042,192.04,192.01,2.6046]
[1736442439454,13.02875023,192.09,191.97,13.02875023]
[1736442439659,13.02875023,192.06,191.95,1.5881]
[1736442440056,13.02875023,192.06,191.96,2.6052]
[1736442440057,2.6049,192.0,191.96,2.6052]
[1736442441258,2.6053,191.96,191.93,2.6057]
[1736442441455,13.02875023,192.02,191.93,2.6057]
[1736442441662,13.02875023,192.02,191.92,1.5225]
[1736442441961,2.6051,191.98,191.94,2.6055]
[1736442442556,2.6051,191.98,191.95,2.6054]
[1736442443360,2.6049,192.0,191.96,2.6053]
[1736442443561,2.6049,192.0,191.93,13.02875023]
[1736442443762,21.31452636,192.05,191.92,1.5225]
[1736442443968,2.6051,191.98,191.94,2.6056]
[1736442444263,13.02875023,192.02,191.92,1.5225]
[1736442444564,2.6056,191.95,191.91,12.26976934]
[1736442444961,13.02875023,191.99,191.91,9.66386934]
[1736442446058,2.6056,191.95,191.9,2.606]
[1736442447264,2.6053,191.96,191.89,1.5869]
[1736442447464,19.20795023,192.01,191.89,1.5869]
[1736442448360,2.605,191.98,191.93,2.6057]
[1736442449757,2.6052,191.97,191.93,2.6057]
[1736442450654,2.605,191.99,191.95,2.6054]
[1736442452360,2.6051,191.98,191.93,2.6056]
[1736442453569,2.6051,191.98,191.9,13.02875023]
[1736442453763,2.6051,191.98,191.94,2.6055]
[1736442455762,2.6055,191.95,191.91,2.606]
[1736442456365,2.6055,191.95,191.92,2.6058]
[1736442456766,2.6055,191.95,191.9,13.02875023]
[1736442456966,2.6051,191.98,191.9,13.02875023]
[1736442457166,14.58795023,192.01,191.9,13.02875023]
[1736442457367,8.34397572,191.97,191.91,8.34397572]
[1736442457563,8.34397572,191.99,191.93,8.34397572]
[1736442458263,1.5592,192.01,191.95,8.34397572]